[Event "*** SCC Grand Prix: Titled Tuesday Blitz"]
[Site "Chess.com"]
[Date "2020.06.09"]
[Round "4"]
[White "pfalcon1949"]
[Black "Ceejay271"]
[Result "0-1"]
[WhiteElo "1927"]
[BlackElo "2395"]
[TimeControl "180+1"]
[EndTime "9:39:55 PDT"]
[Termination "Ceejay271 won by resignation"]

1. d4 {[%clk 0:03:00.9]} 1... Nf6 {[%clk 0:02:58.6]} 2. c4 {[%clk 0:03:00.5]}
2... e6 {[%clk 0:02:57.2]} 3. Nc3 {[%clk 0:03:00.6]} 3... Bb4 {[%clk 0:02:56.9]}
4. a3 {[%clk 0:03:00]} 4... Bxc3+ {[%clk 0:02:56.9]} 5. bxc3 {[%clk 0:03:00.9]}
5... Nc6 {[%clk 0:02:55]} 6. e3 {[%clk 0:03:01.3]} 6... d6 {[%clk 0:02:51.3]} 7.
Bd3 {[%clk 0:03:01.2]} 7... e5 {[%clk 0:02:50]} 8. Ne2 {[%clk 0:02:57.6]} 8...
O-O {[%clk 0:02:47]} 9. O-O {[%clk 0:02:57.3]} 9... b6 {[%clk 0:02:44.4]} 10. f3
{[%clk 0:02:57.6]} 10... Ba6 {[%clk 0:02:41.7]} 11. Ng3 {[%clk 0:02:54.8]} 11...
Na5 {[%clk 0:02:39.9]} 12. Qe2 {[%clk 0:02:53.1]} 12... c5 {[%clk 0:02:38.1]}
13. d5 {[%clk 0:02:43.6]} 13... Nb3 {[%clk 0:02:31.5]} 14. Rb1 {[%clk
0:02:40.2]} 14... Nxc1 {[%clk 0:02:30.9]} 15. Rbxc1 {[%clk 0:02:40.1]} 15... Re8
{[%clk 0:02:26]} 16. a4 {[%clk 0:02:28.7]} 16... g6 {[%clk 0:02:13.5]} 17. Kh1
{[%clk 0:02:26.4]} 17... Nd7 {[%clk 0:02:06.3]} 18. e4 {[%clk 0:02:22.6]} 18...
Qh4 {[%clk 0:01:58.9]} 19. Rg1 {[%clk 0:02:14.8]} 19... Re7 {[%clk 0:01:40.6]}
20. a5 {[%clk 0:02:10.2]} 20... Rf8 {[%clk 0:01:34.3]} 21. axb6 {[%clk
0:02:08.2]} 21... axb6 {[%clk 0:01:34.2]} 22. Ra1 {[%clk 0:02:08.3]} 22... Bc8
{[%clk 0:01:33.4]} 23. Ra7 {[%clk 0:02:07.6]} 23... h5 {[%clk 0:01:12.4]} 24.
Bc2 {[%clk 0:02:02]} 24... Qf4 {[%clk 0:01:04]} 25. Ba4 {[%clk 0:01:55.3]} 25...
h4 {[%clk 0:01:02.3]} 26. Nf1 {[%clk 0:01:38.8]} 26... f5 {[%clk 0:01:01.9]} 27.
Bxd7 {[%clk 0:01:36.4]} 27... Bxd7 {[%clk 0:01:02.6]} 28. Qe3 {[%clk 0:01:31.8]}
28... fxe4 {[%clk 0:00:58.1]} 29. fxe4 {[%clk 0:01:07.5]} 29... Qxe3 {[%clk
0:00:39.4]} 30. Nxe3 {[%clk 0:01:05.2]} 30... Rf4 {[%clk 0:00:39.9]} 31. Rb7
{[%clk 0:00:41.2]} 31... Rxe4 {[%clk 0:00:38.7]} 32. Nc2 {[%clk 0:00:35.9]}
32... Rxc4 {[%clk 0:00:36.9]} 33. Rxb6 {[%clk 0:00:34.1]} 33... Rxc3 {[%clk
0:00:37]} 34. Ne1 {[%clk 0:00:29.9]} 34... Rc1 {[%clk 0:00:27.1]} 35. h3 {[%clk
0:00:26.7]} 35... c4 {[%clk 0:00:24.8]} 36. Rb7 {[%clk 0:00:20.3]} 36... Rf7
{[%clk 0:00:20.6]} 37. Nf3 {[%clk 0:00:19.2]} 37... Rxg1+ {[%clk 0:00:19.4]} 38.
Kxg1 {[%clk 0:00:17.6]} 38... Bf5 {[%clk 0:00:19.6]} 39. Rxf7 {[%clk 0:00:16.3]}
39... Kxf7 {[%clk 0:00:20.5]} 40. Kf2 {[%clk 0:00:12.5]} 40... c3 {[%clk
0:00:20.6]} 41. Ke2 {[%clk 0:00:11.5]} 41... c2 {[%clk 0:00:19.5]} 42. Kd2
{[%clk 0:00:11]} 42... Be4 {[%clk 0:00:18.9]} 43. Nxh4 {[%clk 0:00:10.7]} 43...
Bxd5 {[%clk 0:00:19]} 44. g4 {[%clk 0:00:09.1]} 44... Kf6 {[%clk 0:00:18.1]} 45.
Kxc2 {[%clk 0:00:09.3]} 45... Kg5 {[%clk 0:00:18.1]} 46. Nxg6 {[%clk 0:00:07]}
46... Kxg6 {[%clk 0:00:18]} 47. Kd3 {[%clk 0:00:07.6]} 47... Kg5 {[%clk
0:00:18.1]} 48. Ke3 {[%clk 0:00:08.5]} 48... Kh4 {[%clk 0:00:18.3]} 49. Kf2
{[%clk 0:00:08.4]} 49... Kxh3 {[%clk 0:00:18.6]} 50. g5 {[%clk 0:00:08.9]} 50...
Be4 {[%clk 0:00:19]} 51. Ke3 {[%clk 0:00:08.5]} 51... Bg6 {[%clk 0:00:19.2]} 52.
Kf3 {[%clk 0:00:07.7]} 52... d5 {[%clk 0:00:19.7]} 53. Ke3 {[%clk 0:00:07.9]}
53... Kg4 {[%clk 0:00:20.2]} 54. Kd2 {[%clk 0:00:07.8]} 54... Kxg5 {[%clk
0:00:20.7]} 55. Ke3 {[%clk 0:00:07]} 55... Kf5 {[%clk 0:00:20.6]} 0-1

[Event "*** SCC Grand Prix: Titled Tuesday Blitz"]
[Site "Chess.com"]
[Date "2020.06.09"]
[Round "4"]
[White "Gloomy_Wanderer"]
[Black "Colchonero64"]
[Result "0-1"]
[WhiteElo "2787"]
[BlackElo "3001"]
[TimeControl "180+1"]
[EndTime "9:39:57 PDT"]
[Termination "Colchonero64 won on time"]

1. d4 {[%clk 0:03:00.9]} 1... Nf6 {[%clk 0:02:59.5]} 2. Nf3 {[%clk 0:03:00.5]}
2... g6 {[%clk 0:02:59.7]} 3. c4 {[%clk 0:03:00.5]} 3... Bg7 {[%clk 0:02:59.9]}
4. g3 {[%clk 0:03:01.2]} 4... O-O {[%clk 0:02:59.2]} 5. Bg2 {[%clk 0:03:01.5]}
5... d6 {[%clk 0:02:59.5]} 6. O-O {[%clk 0:03:01.6]} 6... Nbd7 {[%clk
0:02:59.7]} 7. Nc3 {[%clk 0:03:02]} 7... e5 {[%clk 0:02:59.1]} 8. e4 {[%clk
0:03:02.7]} 8... c6 {[%clk 0:02:56.2]} 9. h3 {[%clk 0:03:01.8]} 9... Re8 {[%clk
0:02:53.7]} 10. Re1 {[%clk 0:02:57.2]} 10... exd4 {[%clk 0:02:49.5]} 11. Nxd4
{[%clk 0:02:58.1]} 11... Qb6 {[%clk 0:02:49.7]} 12. Re2 {[%clk 0:02:57.2]} 12...
Nc5 {[%clk 0:02:46.3]} 13. Be3 {[%clk 0:02:37.2]} 13... Qc7 {[%clk 0:02:38.8]}
14. Qc2 {[%clk 0:02:27.8]} 14... a5 {[%clk 0:02:37.9]} 15. Rd1 {[%clk
0:02:27.2]} 15... h6 {[%clk 0:02:32.5]} 16. f4 {[%clk 0:02:18.1]} 16... a4
{[%clk 0:02:25.3]} 17. Bf2 {[%clk 0:02:16.1]} 17... h5 {[%clk 0:02:16.9]} 18.
Ndb5 {[%clk 0:01:47.9]} 18... cxb5 {[%clk 0:02:16.8]} 19. Nxb5 {[%clk 0:01:48]}
19... Qa5 {[%clk 0:02:14.2]} 20. Nxd6 {[%clk 0:01:40.8]} 20... Be6 {[%clk
0:01:48.2]} 21. e5 {[%clk 0:01:26.5]} 21... Nfd7 {[%clk 0:01:47.4]} 22. Nxe8
{[%clk 0:01:26.7]} 22... Rxe8 {[%clk 0:01:46.8]} 23. Bd5 {[%clk 0:01:27.3]}
23... Bf5 {[%clk 0:01:36.9]} 24. Qd2 {[%clk 0:01:06.7]} 24... Qxd2 {[%clk
0:01:36.7]} 25. Rexd2 {[%clk 0:01:07.6]} 25... Bxh3 {[%clk 0:01:33.3]} 26. Bxb7
{[%clk 0:00:37.3]} 26... Nxb7 {[%clk 0:01:14.1]} 27. Rxd7 {[%clk 0:00:37.3]}
27... Bxd7 {[%clk 0:01:14.8]} 28. Rxd7 {[%clk 0:00:37.9]} 28... Na5 {[%clk
0:01:15]} 29. c5 {[%clk 0:00:38.3]} 29... Rc8 {[%clk 0:01:01.9]} 30. Ra7 {[%clk
0:00:36.9]} 30... Nc4 {[%clk 0:01:01.9]} 31. Bd4 {[%clk 0:00:36.9]} 31... a3
{[%clk 0:00:45.5]} 32. b4 {[%clk 0:00:26.8]} 32... Bf8 {[%clk 0:00:44.1]} 33.
Kf2 {[%clk 0:00:25.3]} 33... Rb8 {[%clk 0:00:39.3]} 34. Bc3 {[%clk 0:00:23]}
34... Rd8 {[%clk 0:00:24.4]} 35. Ke2 {[%clk 0:00:22.9]} 35... g5 {[%clk
0:00:22.1]} 36. fxg5 {[%clk 0:00:18]} 36... Bg7 {[%clk 0:00:20.2]} 37. c6 {[%clk
0:00:15.8]} 37... Bxe5 {[%clk 0:00:18.1]} 38. Bxe5 {[%clk 0:00:14.7]} 38... Nxe5
{[%clk 0:00:18.2]} 39. b5 {[%clk 0:00:14.9]} 39... Nc4 {[%clk 0:00:12.8]} 40.
Kf3 {[%clk 0:00:07.2]} 40... Rc8 {[%clk 0:00:09.7]} 41. Kf4 {[%clk 0:00:04.9]}
41... Nd6 {[%clk 0:00:09.3]} 42. Ra5 {[%clk 0:00:02.8]} 42... Kg7 {[%clk
0:00:07.3]} 43. Ke3 {[%clk 0:00:01.3]} 43... Nc4+ {[%clk 0:00:07.1]} 0-1

[Event "*** SCC Grand Prix: Titled Tuesday Blitz"]
[Site "Chess.com"]
[Date "2020.06.09"]
[Round "4"]
[White "Semetey"]
[Black "snap_man"]
[Result "1-0"]
[WhiteElo "2531"]
[BlackElo "2305"]
[TimeControl "180+1"]
[EndTime "9:39:58 PDT"]
[Termination "Semetey won by resignation"]

1. Nf3 {[%clk 0:03:00.9]} 1... Nf6 {[%clk 0:02:59.5]} 2. g3 {[%clk 0:03:01.8]}
2... d5 {[%clk 0:02:59.7]} 3. Bg2 {[%clk 0:03:01.6]} 3... c5 {[%clk 0:02:57.1]}
4. O-O {[%clk 0:02:59.5]} 4... g6 {[%clk 0:02:57]} 5. b3 {[%clk 0:02:54.6]} 5...
Bg7 {[%clk 0:02:56.9]} 6. Bb2 {[%clk 0:02:55.1]} 6... O-O {[%clk 0:02:57]} 7. c4
{[%clk 0:02:54.3]} 7... d4 {[%clk 0:02:56.1]} 8. e3 {[%clk 0:02:54.6]} 8... Nc6
{[%clk 0:02:52.4]} 9. exd4 {[%clk 0:02:54.3]} 9... cxd4 {[%clk 0:02:52.4]} 10.
Re1 {[%clk 0:02:53.8]} 10... a5 {[%clk 0:02:47]} 11. a3 {[%clk 0:02:50.2]} 11...
Nd7 {[%clk 0:02:33.3]} 12. d3 {[%clk 0:02:47]} 12... Nc5 {[%clk 0:02:30.4]} 13.
Qd2 {[%clk 0:02:41.7]} 13... a4 {[%clk 0:02:27.7]} 14. b4 {[%clk 0:02:40.7]}
14... Nb3 {[%clk 0:02:27.6]} 15. Qc2 {[%clk 0:02:40.8]} 15... Nxa1 {[%clk
0:02:27.4]} 16. Bxa1 {[%clk 0:02:41.7]} 16... Bg4 {[%clk 0:01:58.4]} 17. h3
{[%clk 0:02:35.4]} 17... Bxf3 {[%clk 0:01:55.5]} 18. Bxf3 {[%clk 0:02:35.2]}
18... e5 {[%clk 0:01:55.8]} 19. Qd2 {[%clk 0:02:34.2]} 19... Qd7 {[%clk
0:01:46.9]} 20. Bg2 {[%clk 0:02:31.3]} 20... Kh8 {[%clk 0:01:32.9]} 21. Qc2
{[%clk 0:02:26.2]} 21... f5 {[%clk 0:01:30.3]} 22. Nd2 {[%clk 0:02:26.1]} 22...
Rae8 {[%clk 0:01:27.4]} 23. Qxa4 {[%clk 0:02:24.4]} 23... Ra8 {[%clk 0:01:11.3]}
24. Qb3 {[%clk 0:02:23.7]} 24... Nd8 {[%clk 0:01:06.2]} 25. b5 {[%clk
0:02:17.6]} 25... Ne6 {[%clk 0:01:02.5]} 26. Bb2 {[%clk 0:01:53.6]} 26... Nc5
{[%clk 0:00:53.9]} 27. Qc2 {[%clk 0:01:52.6]} 27... e4 {[%clk 0:00:30]} 28. dxe4
{[%clk 0:01:51.8]} 28... d3 {[%clk 0:00:30.3]} 29. Qb1 {[%clk 0:01:45.1]} 29...
f4 {[%clk 0:00:20.4]} 30. g4 {[%clk 0:01:37.5]} 30... Rfd8 {[%clk 0:00:16.6]}
31. e5 {[%clk 0:01:33.1]} 31... h5 {[%clk 0:00:15]} 32. Bf3 {[%clk 0:01:31]}
32... Qe6 {[%clk 0:00:08.5]} 33. Qc1 {[%clk 0:00:59.3]} 33... Rd7 {[%clk
0:00:07.3]} 34. Kg2 {[%clk 0:00:58.7]} 34... h4 {[%clk 0:00:07.2]} 35. Bd5
{[%clk 0:00:28.2]} 35... Qe7 {[%clk 0:00:06.7]} 36. e6 {[%clk 0:00:26.8]} 36...
Rdd8 {[%clk 0:00:06.2]} 37. Bxg7+ {[%clk 0:00:18]} 37... Kxg7 {[%clk 0:00:06.4]}
38. Nf3 {[%clk 0:00:18.3]} 38... g5 {[%clk 0:00:03.2]} 39. Re5 {[%clk
0:00:15.5]} 39... Qf6 {[%clk 0:00:03.1]} 40. Rxg5+ {[%clk 0:00:15]} 40... Kf8
{[%clk 0:00:03.4]} 41. Rf5 {[%clk 0:00:15.1]} 1-0

[Event "*** SCC Grand Prix: Titled Tuesday Blitz"]
[Site "Chess.com"]
[Date "2020.06.09"]
[Round "4"]
[White "Firouzja2003"]
[Black "obliviate12"]
[Result "1-0"]
[WhiteElo "3134"]
[BlackElo "2809"]
[TimeControl "180+1"]
[EndTime "9:39:59 PDT"]
[Termination "Firouzja2003 won by resignation"]

1. e4 {[%clk 0:03:00.9]} 1... c6 {[%clk 0:02:59.9]} 2. d4 {[%clk 0:02:57.9]}
2... d5 {[%clk 0:03:00.1]} 3. e5 {[%clk 0:02:58.8]} 3... c5 {[%clk 0:03:00]} 4.
Nf3 {[%clk 0:02:54.1]} 4... Nc6 {[%clk 0:02:57.9]} 5. dxc5 {[%clk 0:02:51.4]}
5... e6 {[%clk 0:02:58]} 6. Be3 {[%clk 0:02:44.1]} 6... Nge7 {[%clk 0:02:55.9]}
7. Bd3 {[%clk 0:02:40.7]} 7... Ng6 {[%clk 0:02:56.1]} 8. Bxg6 {[%clk 0:02:38.3]}
8... hxg6 {[%clk 0:02:57]} 9. c3 {[%clk 0:02:38.7]} 9... Qc7 {[%clk 0:02:43.4]}
10. Bd4 {[%clk 0:02:35.2]} 10... Nxd4 {[%clk 0:02:06]} 11. cxd4 {[%clk
0:02:33.5]} 11... b6 {[%clk 0:02:06.5]} 12. cxb6 {[%clk 0:01:45.6]} 12... Qxb6
{[%clk 0:02:07.4]} 13. O-O {[%clk 0:01:45.3]} 13... Bd7 {[%clk 0:01:43.2]} 14.
Qd2 {[%clk 0:01:38.8]} 14... Be7 {[%clk 0:01:30]} 15. Nc3 {[%clk 0:01:38.3]}
15... a5 {[%clk 0:01:27.9]} 16. b3 {[%clk 0:01:22.7]} 16... O-O {[%clk
0:01:25.9]} 17. Ne2 {[%clk 0:01:11.9]} 17... a4 {[%clk 0:01:20.4]} 18. bxa4
{[%clk 0:01:11.9]} 18... Rxa4 {[%clk 0:01:21.3]} 19. h4 {[%clk 0:01:10.2]} 19...
Rfa8 {[%clk 0:01:20.2]} 20. Ng3 {[%clk 0:01:03]} 20... Qa5 {[%clk 0:01:04]} 21.
Qf4 {[%clk 0:01:01.7]} 21... Rxa2 {[%clk 0:01:03.2]} 22. Rxa2 {[%clk 0:00:58.8]}
22... Qxa2 {[%clk 0:01:04.1]} 23. h5 {[%clk 0:00:52.1]} 23... gxh5 {[%clk
0:01:02.9]} 24. Nxh5 {[%clk 0:00:50.9]} 24... Qc2 {[%clk 0:01:01.3]} 25. Nf6+
{[%clk 0:00:36.8]} 25... gxf6 {[%clk 0:00:47.5]} 26. exf6 {[%clk 0:00:37.7]}
26... Bf8 {[%clk 0:00:45.2]} 27. Ne5 {[%clk 0:00:38.2]} 27... Be8 {[%clk
0:00:27.9]} 28. Re1 {[%clk 0:00:29.7]} 28... Ra3 {[%clk 0:00:19.7]} 29. Qg5+
{[%clk 0:00:14.2]} 29... Kh8 {[%clk 0:00:19.3]} 30. Rc1 {[%clk 0:00:14.2]} 30...
Qh7 {[%clk 0:00:11.8]} 31. g3 {[%clk 0:00:09.9]} 31... Bh6 {[%clk 0:00:08.6]}
32. Nxf7+ {[%clk 0:00:08]} 32... Bxf7 {[%clk 0:00:04.7]} 33. Rc8+ {[%clk
0:00:07.3]} 33... Bg8 {[%clk 0:00:04]} 34. Rxg8+ {[%clk 0:00:07.8]} 34... Qxg8
{[%clk 0:00:04.9]} 35. Qxh6+ {[%clk 0:00:08.4]} 35... Qh7 {[%clk 0:00:05.3]} 36.
Qf8+ {[%clk 0:00:09.1]} 36... Qg8 {[%clk 0:00:05.8]} 37. Qxa3 {[%clk 0:00:09.6]}
37... Qf7 {[%clk 0:00:06.2]} 38. Qe7 {[%clk 0:00:07.8]} 1-0

[Event "*** SCC Grand Prix: Titled Tuesday Blitz"]
[Site "Chess.com"]
[Date "2020.06.09"]
[Round "4"]
[White "memer5334"]
[Black "Baby_Shak"]
[Result "1-0"]
[WhiteElo "2229"]
[BlackElo "2550"]
[TimeControl "180+1"]
[EndTime "9:39:59 PDT"]
[Termination "memer5334 won by resignation"]

1. d4 {[%clk 0:03:00.9]} 1... d5 {[%clk 0:02:58.9]} 2. c4 {[%clk 0:03:01.3]}
2... Nc6 {[%clk 0:02:58.9]} 3. Nf3 {[%clk 0:02:59.4]} 3... Bg4 {[%clk
0:02:56.2]} 4. Qb3 {[%clk 0:02:58]} 4... Bxf3 {[%clk 0:02:48]} 5. exf3 {[%clk
0:02:58.4]} 5... Nxd4 {[%clk 0:02:43]} 6. Qxb7 {[%clk 0:02:47.6]} 6... Rb8
{[%clk 0:02:36.8]} 7. Qxa7 {[%clk 0:02:44.5]} 7... Nc2+ {[%clk 0:02:35.4]} 8.
Kd1 {[%clk 0:02:44.8]} 8... Nxa1 {[%clk 0:02:34.3]} 9. c5 {[%clk 0:02:41.6]}
9... e5 {[%clk 0:02:18.8]} 10. Nc3 {[%clk 0:02:39.5]} 10... Nf6 {[%clk
0:02:17.1]} 11. Bb5+ {[%clk 0:02:38.5]} 11... Ke7 {[%clk 0:01:46.6]} 12. Re1
{[%clk 0:02:35.9]} 12... Nd7 {[%clk 0:01:39.3]} 13. Nxd5+ {[%clk 0:02:32.8]}
13... Ke6 {[%clk 0:01:30.1]} 14. Nxc7+ {[%clk 0:02:30.1]} 14... Kf6 {[%clk
0:01:28]} 15. Nd5+ {[%clk 0:02:24]} 15... Kg6 {[%clk 0:01:24.5]} 16. Qxd7 {[%clk
0:02:12.8]} 16... Qxd7 {[%clk 0:01:18.3]} 17. Bxd7 {[%clk 0:02:12.7]} 17... Bxc5
{[%clk 0:01:16]} 18. g4 {[%clk 0:02:08.4]} 18... f6 {[%clk 0:01:10]} 19. f4
{[%clk 0:01:43]} 19... Kf7 {[%clk 0:00:55.4]} 20. fxe5 {[%clk 0:01:39.1]} 20...
fxe5 {[%clk 0:00:53.6]} 21. Rxe5 {[%clk 0:01:36.4]} 21... Rhd8 {[%clk 0:00:52]}
22. Be6+ {[%clk 0:01:35.1]} 22... Kf8 {[%clk 0:00:51.2]} 23. Bg5 {[%clk
0:01:25.5]} 23... Bd4 {[%clk 0:00:16.7]} 24. Rf5+ {[%clk 0:00:48.8]} 24... Bf6
{[%clk 0:00:16]} 25. Bxf6 {[%clk 0:00:44.9]} 25... gxf6 {[%clk 0:00:16.9]} 26.
Rxf6+ {[%clk 0:00:40.1]} 26... Kg7 {[%clk 0:00:17.3]} 27. Rf7+ {[%clk
0:00:38.1]} 27... Kh8 {[%clk 0:00:17.5]} 28. b3 {[%clk 0:00:34.1]} 28... Rb6
{[%clk 0:00:15.3]} 29. Re7 {[%clk 0:00:21.9]} 29... Rxe6 {[%clk 0:00:14.1]} 30.
Rxe6 {[%clk 0:00:21.9]} 30... Rxd5+ {[%clk 0:00:14.6]} 31. Kc1 {[%clk
0:00:22.5]} 31... Rd4 {[%clk 0:00:12.7]} 32. Kb2 {[%clk 0:00:15.9]} 32... Rd1
{[%clk 0:00:12]} 33. b4 {[%clk 0:00:15.1]} 33... Rf1 {[%clk 0:00:10.8]} 34. Rf6
{[%clk 0:00:14.4]} 34... Kg7 {[%clk 0:00:09.9]} 35. Rf3 {[%clk 0:00:14.8]} 35...
Rg1 {[%clk 0:00:08.2]} 36. h3 {[%clk 0:00:14.2]} 36... Rd1 {[%clk 0:00:07]} 37.
b5 {[%clk 0:00:14.3]} 37... Rd5 {[%clk 0:00:06.6]} 38. Kxa1 {[%clk 0:00:14.6]}
38... Rxb5 {[%clk 0:00:07.1]} 39. a4 {[%clk 0:00:13.6]} 39... Rb4 {[%clk
0:00:07.1]} 40. Ra3 {[%clk 0:00:13.3]} 40... Rf4 {[%clk 0:00:06.6]} 41. f3
{[%clk 0:00:13.1]} 41... Kf6 {[%clk 0:00:07]} 42. a5 {[%clk 0:00:13.6]} 42...
Rb4 {[%clk 0:00:07]} 43. a6 {[%clk 0:00:13.9]} 43... Rb8 {[%clk 0:00:07.4]} 44.
Ka2 {[%clk 0:00:13]} 44... Ra8 {[%clk 0:00:07.3]} 45. Ra5 {[%clk 0:00:13.5]}
45... Ra7 {[%clk 0:00:06.2]} 46. Ka3 {[%clk 0:00:13.5]} 46... Kg6 {[%clk
0:00:06.3]} 47. Ka4 {[%clk 0:00:14.1]} 47... Kg7 {[%clk 0:00:06.7]} 48. Kb5
{[%clk 0:00:14.5]} 1-0

[Event "*** SCC Grand Prix: Titled Tuesday Blitz"]
[Site "Chess.com"]
[Date "2020.06.09"]
[Round "4"]
[White "MomchilPetkov"]
[Black "Semen_Khanin"]
[Result "0-1"]
[WhiteElo "2534"]
[BlackElo "2737"]
[TimeControl "180+1"]
[EndTime "9:40:00 PDT"]
[Termination "Semen_Khanin won by checkmate"]

1. d4 {[%clk 0:03:00.9]} 1... Nf6 {[%clk 0:02:59.9]} 2. c4 {[%clk 0:03:01.3]}
2... e6 {[%clk 0:02:59.5]} 3. Nc3 {[%clk 0:03:01.3]} 3... Bb4 {[%clk 0:02:59.5]}
4. Bd2 {[%clk 0:03:01.4]} 4... O-O {[%clk 0:02:57.5]} 5. Nf3 {[%clk 0:03:00.7]}
5... c5 {[%clk 0:02:52.1]} 6. a3 {[%clk 0:02:56.6]} 6... Bxc3 {[%clk 0:02:51.9]}
7. Bxc3 {[%clk 0:02:57.5]} 7... Ne4 {[%clk 0:02:52.2]} 8. Rc1 {[%clk 0:02:57.5]}
8... d6 {[%clk 0:02:49.4]} 9. g3 {[%clk 0:02:56.3]} 9... b6 {[%clk 0:02:48.2]}
10. Bg2 {[%clk 0:02:56.3]} 10... Bb7 {[%clk 0:02:48.4]} 11. O-O {[%clk
0:02:56.2]} 11... Qe7 {[%clk 0:02:39.5]} 12. Re1 {[%clk 0:02:39.7]} 12... Nd7
{[%clk 0:02:38.6]} 13. h4 {[%clk 0:02:07.4]} 13... h6 {[%clk 0:02:32.3]} 14. Qd3
{[%clk 0:02:00.1]} 14... f5 {[%clk 0:02:26.1]} 15. d5 {[%clk 0:01:54.4]} 15...
e5 {[%clk 0:02:22.9]} 16. Nd2 {[%clk 0:01:51.3]} 16... Nxc3 {[%clk 0:02:20.3]}
17. Qxc3 {[%clk 0:01:51]} 17... e4 {[%clk 0:02:17.9]} 18. Bh3 {[%clk 0:01:13.9]}
18... Rae8 {[%clk 0:02:15]} 19. Nf1 {[%clk 0:01:11.4]} 19... Ne5 {[%clk
0:02:10]} 20. Ne3 {[%clk 0:00:56.8]} 20... Bc8 {[%clk 0:02:09.3]} 21. Ng2 {[%clk
0:00:55.9]} 21... g5 {[%clk 0:02:08.5]} 22. hxg5 {[%clk 0:00:32.8]} 22... hxg5
{[%clk 0:02:08.2]} 23. Ne3 {[%clk 0:00:31.2]} 23... f4 {[%clk 0:01:56.9]} 24.
Bxc8 {[%clk 0:00:30.4]} 24... Rxc8 {[%clk 0:01:56.9]} 25. Ng2 {[%clk 0:00:23.4]}
25... f3 {[%clk 0:01:55]} 26. Ne3 {[%clk 0:00:23.2]} 26... Qh7 {[%clk
0:01:54.3]} 27. Qc2 {[%clk 0:00:16.5]} 27... fxe2 {[%clk 0:01:44.4]} 28. Kg2
{[%clk 0:00:16.1]} 28... Rxf2+ {[%clk 0:01:36.5]} 29. Kxf2 {[%clk 0:00:14.7]}
29... Qh2+ {[%clk 0:01:35.4]} 30. Ng2 {[%clk 0:00:12.7]} 30... Rf8+ {[%clk
0:01:08.4]} 31. Kxe2 {[%clk 0:00:10.4]} 31... Qxg2+ {[%clk 0:01:07.9]} 32. Kd1
{[%clk 0:00:10.9]} 32... Rf2 {[%clk 0:01:03]} 33. Qc3 {[%clk 0:00:06.9]} 33...
Nf3 {[%clk 0:00:57.4]} 34. Rc2 {[%clk 0:00:05.4]} 34... Rxc2 {[%clk 0:00:57.2]}
35. Qxc2 {[%clk 0:00:04.2]} 35... Qxc2+ {[%clk 0:00:57.2]} 36. Kxc2 {[%clk
0:00:05.1]} 36... Nxe1+ {[%clk 0:00:57.5]} 37. Kd2 {[%clk 0:00:06]} 37... Nd3
{[%clk 0:00:57.2]} 38. b3 {[%clk 0:00:06.9]} 38... Kf7 {[%clk 0:00:52.9]} 39.
Ke3 {[%clk 0:00:07.3]} 39... Kf6 {[%clk 0:00:52.7]} 40. Kxe4 {[%clk 0:00:07.2]}
40... Nc1 {[%clk 0:00:50.5]} 41. b4 {[%clk 0:00:08.1]} 41... Nb3 {[%clk
0:00:41.2]} 42. b5 {[%clk 0:00:09]} 42... Nd2+ {[%clk 0:00:38.7]} 43. Kd3 {[%clk
0:00:08.8]} 43... Nxc4 {[%clk 0:00:36.6]} 44. Kxc4 {[%clk 0:00:08.7]} 44... Ke5
{[%clk 0:00:37.3]} 45. g4 {[%clk 0:00:07.7]} 45... Ke4 {[%clk 0:00:37.4]} 46.
Kc3 {[%clk 0:00:07.8]} 46... Kxd5 {[%clk 0:00:37.3]} 47. Kb3 {[%clk 0:00:08]}
47... Ke4 {[%clk 0:00:37.4]} 48. Ka4 {[%clk 0:00:08.5]} 48... d5 {[%clk
0:00:37.1]} 49. Kb3 {[%clk 0:00:09.4]} 49... d4 {[%clk 0:00:37.3]} 50. Ka4
{[%clk 0:00:10.3]} 50... d3 {[%clk 0:00:36.9]} 51. Kb3 {[%clk 0:00:10.5]} 51...
Ke3 {[%clk 0:00:36.9]} 52. Kc4 {[%clk 0:00:10.4]} 52... d2 {[%clk 0:00:35.9]}
53. Kd5 {[%clk 0:00:10.1]} 53... d1=Q+ {[%clk 0:00:36.1]} 54. Kc6 {[%clk
0:00:11]} 54... c4 {[%clk 0:00:36]} 55. Kb7 {[%clk 0:00:11.9]} 55... Qd7+ {[%clk
0:00:34.2]} 56. Ka6 {[%clk 0:00:11.8]} 56... c3 {[%clk 0:00:33.6]} 57. a4 {[%clk
0:00:12.1]} 57... c2 {[%clk 0:00:32.9]} 58. a5 {[%clk 0:00:13]} 58... c1=Q
{[%clk 0:00:33.1]} 59. axb6 {[%clk 0:00:13.9]} 59... Qa3# {[%clk 0:00:33.4]} 0-1